fUSD/lending_fUSD_20241010
["ID","MTS","AMOUNT","RATE_DAILY","PERIOD"]
[340110174,1728580245684,-410.19912744,0.00013,2]
[340110175,1728580245693,-300.0,0.00013,2]
[340110176,1728580245702,-2318.23417867,0.0001305,2]
[340110177,1728580245714,-2746.24400778,0.0001305,2]
[340110178,1728580245725,-262.15599222,0.00013151,2]
[340110179,1728580245738,-907.60400778,0.00013151,2]
[340110180,1728580245747,-181.48,0.00013151,2]
[340110181,1728580245756,-167.0,0.00013266,2]
[340110182,1728580245766,-368.49,0.0001331,2]
[340110183,1728580245776,-600.0,0.00013386,2]
[340110184,1728580245787,-600.0,0.00013386,2]
[340110185,1728580245797,-1714.42,0.00013425,2]
[340110186,1728580245807,-655.65,0.00013429,2]
[340110187,1728580245817,-800.0,0.00013448,2]
[340110188,1728580245826,-1000.0,0.000135,2]
[340110189,1728580245835,-640.0,0.00013568,2]
[340110190,1728580245845,-573.85308971,0.0001358,2]
[340110191,1728580245854,-600.0,0.0001358,2]
[340110192,1728580245863,-600.0,0.0001358,2]
[340110193,1728580245873,-600.0,0.0001358,2]
[340110194,1728580245882,-500.93525756,0.00013673,2]
[340110195,1728580245891,-167.0,0.00013677,2]
[340110196,1728580245901,-49823.56764495,0.00013698,2]
[340110197,1728580245916,-1519.74120775,0.00013698,2]
[340110198,1728580245927,-906.30100541,0.00013698,2]
[340110199,1728580245937,-32189.77327764,0.00013698,2]
[340110200,1728580245964,-161.55649535,0.00013698,2]
[340110201,1728580245975,-6105.237942,0.00013698,2]
[340110202,1728580245986,-612.34305062,0.00013698,2]
[340110203,1728580245997,-451.23409272,0.00013698,2]
[340110232,1728580629675,250.0,9.825e-05,2]
[340110233,1728580647429,-163.084751,0.000125,3]
[340110234,1728580984808,250.0,9.825e-05,2]
[340110235,1728581037717,807.1,8.219e-05,2]
[340110236,1728581069933,296.36,9.825e-05,2]
[340110237,1728581153411,6627.58406576,0.0001,2]
[340110291,1728581431748,-807.1,0.00010467,2]
[340110292,1728581431759,-300.0,0.00010799,2]
[340110293,1728581431768,-336.8029,0.000108,2]
[340110294,1728581431779,-35021.4750063,0.000108,2]
[340110295,1728581431790,-471.55435349,0.000108,2]
[340110296,1728581431815,-285.29701288,0.000108,2]
[340110297,1728581431826,-602.10727683,0.000108,2]
[340110298,1728581431879,-1557.23908,0.000108,2]
[340110299,1728581431943,-606.7863705,0.000108,2]
[340110300,1728581431952,-6642.2644,0.000108,2]
[340110301,1728581431962,-220.1512,0.000108,2]
[340110302,1728581431973,-500.0,0.00010873,2]
[340110303,1728581431984,-242.21393067,0.00010873,2]
[340110304,1728581431995,-1467.42043511,0.00010899,2]
[340110305,1728581432004,-9245.1333,0.000109,2]
[340110306,1728581432013,-210208.82384239,0.000109,2]
[340110307,1728581432024,-2808.11165761,0.000109,2]
[340110308,1728581432035,-478.8605,0.000109,2]
[340110309,1728581432045,-7310.02261396,0.000109,2]
[340110310,1728581432054,-161.5,0.00010959,2]
[340110311,1728581432064,-150.35,0.00010959,2]
[340110312,1728581432073,-340.55,0.00010959,2]
[340110313,1728581432083,-250.0,0.00010959,2]
[340110314,1728581432093,-500.0,0.00010965,2]
[340110315,1728581432105,-578.95672834,0.00010973,2]
[340110316,1728581432115,-500.0,0.00010974,2]
[340110317,1728581432124,-500.0,0.00010982,2]
[340110319,1728581432134,-172.231,0.0001099,2]
[340110321,1728581432144,-500.0,0.00010991,2]
[340110323,1728581432153,-3434.74,0.00010991,2]
[340110325,1728581432162,-500.0,0.00010999,2]
[340110326,1728581432171,-253.58950557,0.00010999,2]
[340110329,1728581432183,-2234.14626627,0.00011,2]
[340110331,1728581432199,-133702.61274723,0.00011,2]
[340110333,1728581432209,-266.72,0.00011,2]
[340110335,1728581432218,-250.0,0.00011,2]
[340110337,1728581432228,-267728.774628,0.00011,2]
[340110339,1728581432241,-3410.50407077,0.00011,2]
[340110341,1728581432256,-575.10458265,0.00011,2]
[340110352,1728581437833,-673.10252118,0.00011,2]
[340110354,1728581437846,-300.32,0.00011,2]
[340110357,1728581438009,-353.01173433,0.00011,2]
[340110358,1728581438025,-1293.58836887,0.00011,2]
[340110359,1728581438246,-408.0085986,0.00011,2]
[340110360,1728581438261,-1076.7,0.00011,2]
[340110361,1728581438273,-2022.54094756,0.00011,2]
[340110362,1728581438284,-746.48651101,0.00011,2]
[340110363,1728581438295,-307.67134116,0.00011,2]
[340110364,1728581438307,-473.3383626,0.00011,2]
[340110367,1728581438325,-995.36520928,0.00011,2]
[340110400,1728581439810,-719.27519522,0.00011,2]
[340110411,1728581443073,-155773.1339848,0.00011,2]
[340110412,1728581443084,-40672.58652446,0.00011,2]
[340110413,1728581443095,-376995.99134209,0.00011,2]
[340110415,1728581443387,-573.05543176,0.00011,2]
[340110422,1728581445820,-357162.81354526,0.00011,2]
[340110424,1728581504804,500.0,9.825e-05,2]
[340110425,1728581554385,759.01,0.00010175,2]
[340110427,1728582067756,721.05,9.822e-05,2]
[340110462,1728582631919,-300.0,0.00010825,2]
[340110464,1728582631929,-2121.09900074,0.00010826,2]
[340110466,1728582631941,-675.29840181,0.00010826,2]
[340110479,1728582638216,-6368.60259745,0.00010826,2]
[340110480,1728582638226,-1202.0218,0.000109,2]
[340110481,1728582638235,-1320.67839159,0.000109,2]
[340110482,1728582638244,-174.69066663,0.000109,2]
[340110483,1728582638253,-159.01,0.00010959,2]
[340110484,1728582638262,-172.23109825,0.00010999,2]
[340110485,1728582638272,-2651.49672607,0.00011,2]
[340110486,1728582638304,-2000.0,0.00011,2]
[340110487,1728582638326,-30099.5,0.00011,2]
[340110488,1728582638426,-523.63911121,0.00011,2]
[340110489,1728582638437,-3097.86724537,0.00011,2]
[340110496,1728582640186,-1788.56677412,0.00011,2]
[340110497,1728582640209,-1130.40156918,0.00011,2]
[340110498,1728582640221,-1806.3416132,0.00011,2]
[340110499,1728582640232,-301.61782,0.00011,2]
[340110517,1728582643110,-2500.0,0.00011,2]
[340110518,1728582643357,-76443.652253,0.00011,2]
[340110519,1728582643367,-79329.4817318,0.00011,2]
[340110534,1728582646079,-1079.69624636,0.00011,2]
[340110535,1728582646168,-4887.77833931,0.00011,2]
[340110560,1728582769322,700.91,9.726e-05,2]
[340110563,1728583302091,665.86,8.383e-05,2]
[340110564,1728583419366,250.0,0.00010231,2]
[340110565,1728583460943,900.0,0.000102,3]
[340110566,1728583463055,1800.0,0.000103,3]
[340110567,1728583465337,2800.0,0.000104,3]
[340110568,1728583467306,3700.0,0.000105,3]
[340110569,1728583469408,4700.0,0.000106,3]
[340110570,1728583471523,900.0,0.000107,3]
[340110571,1728583473646,900.0,0.000108,3]
[340110572,1728583475767,900.0,0.000109,3]
[340110576,1728583549152,-250.0,0.00010256,2]
[340110577,1728583549174,-437.98,0.00010278,2]
[340110578,1728583549195,-172.24,0.00010325,2]
[340110579,1728583549216,-3223.03,0.00010357,2]
[340110580,1728583549236,-1732.2621598,0.00010364,2]
[340110581,1728583549257,-1718.3,0.00010464,2]
[340110582,1728583549277,-418.18,0.00010476,2]
[340110583,1728583549298,-665.86,0.00010647,2]
[340110584,1728583549319,-1138.71444982,0.0001078,2]
[340110585,1728583549341,-1014.16527864,0.0001078,2]
[340110586,1728583549361,-1189.0,0.0001089,2]
[340110587,1728583549383,-499.99,0.0001089,2]
[340110588,1728583549408,-261.74,0.0001089,2]
[340110589,1728583549430,-150.0,0.00010899,2]
[340110590,1728583549452,-6585.58,0.00010899,2]
[340110591,1728583549475,-1283.0,0.000109,2]
[340110592,1728583549499,-1042.984,0.000109,2]
[340110593,1728583549523,-656.3035,0.000109,2]
[340110594,1728583549546,-4139.5989,0.000109,2]
[340110595,1728583549574,-4008.7672,0.000109,2]
[340110596,1728583549597,-322.06883347,0.000109,2]
[340110597,1728583549621,-3394.31592523,0.000109,2]
[340110598,1728583549650,-174.06460705,0.000109,2]
[340110599,1728583549677,-173.39,0.00010959,2]
[340110600,1728583549699,-2766.69,0.00010959,2]
[340110601,1728583549721,-358.8,0.00010959,2]
[340110602,1728583549742,-150.99,0.00010959,2]
[340110603,1728583549764,-849.08,0.00010959,2]
[340110604,1728583549785,-250.0,0.00010959,2]
[340110605,1728583549807,-500.0,0.00010973,2]
[340110606,1728583549827,-514.79025584,0.00010973,2]
[340110607,1728583549848,-172.813,0.0001099,2]
[340110608,1728583549869,-233.60295272,0.0001099,2]
[340110609,1728583549891,-985.20077232,0.00010997,2]
[340110610,1728583549919,-1396.28615684,0.00010999,2]
[340110611,1728583549940,-493.39859989,0.00010999,2]
[340110612,1728583549963,-1287.711,0.00011,2]
[340110613,1728583549991,-164.16333217,0.00011,2]
[340110614,1728583553112,-12469.75642168,0.00011,2]
[340110620,1728583592097,-209.70848557,0.000109,2]
[340110621,1728583592117,-174.6906666,0.000109,2]
[340110622,1728583592137,-161.5,0.00010959,2]
[340110623,1728583592159,-300.0,0.00010999,2]
[340110624,1728583592183,-300.0,0.00010999,2]
[340110625,1728583592203,-150.0,0.00010999,2]
[340110626,1728583592229,-1546.42936088,0.00011,2]
[340110627,1728583628106,-160.04927942,0.000109,2]
[340110628,1728583628131,-36281.84690004,0.00011,2]
[340110629,1728583629208,-24553.32339125,0.00011,2]
[340110630,1728583637077,-47000.0,0.000109,2]
[340110631,1728583638107,-3709.9729,0.000109,2]
[340110632,1728583638131,-60591.08873174,0.00011,2]
[340110633,1728583638154,-48137.98116438,0.00011,2]
[340110634,1728583640114,-25999.44141284,0.00011,2]
[340110635,1728583643097,-241705.16594682,0.00011,2]
[340110636,1728583643136,-6234.21333119,0.00011,2]
[340110637,1728583652158,-9314.83853019,0.00011,2]
[340110681,1728583832141,-769.49863111,0.00010959,2]
[340110682,1728583832150,-300.0,0.00010999,2]
[340110683,1728583832159,-33198.73919983,0.00011,2]
[340110684,1728583832170,-7496.7048344,0.00011,2]
[340110685,1728583832181,-851.45896926,0.00011,2]
[340110686,1728583832191,-9712.2172811,0.00011,2]
[340110687,1728583832203,-2280.76031104,0.00011,2]
[340110688,1728583832214,-46813.94352387,0.00011,2]
[340110689,1728583832227,-295.0,0.00011,2]
[340110690,1728583832278,-1500.3044245,0.00011,2]
[340110691,1728583832288,-1005.3769144,0.00011,2]
[340110692,1728583832299,-591.45,0.00011,2]
[340110693,1728583832320,-14654.78329812,0.00011,2]
[340110694,1728583832329,-34006.26813883,0.00011,2]
[340110695,1728583832343,-1326.47409564,0.00011,2]
[340110696,1728583832357,-361.36554768,0.00011,2]
[340110697,1728583832368,-4064.67310528,0.00011,2]
[340110698,1728583832379,-1619.09206911,0.00011,2]
[340110699,1728583832390,-596.35299241,0.00011,2]
[340110701,1728583832400,-10734.88416,0.00011,2]
[340110703,1728583832411,-300.27430865,0.00011,2]
[340110721,1728583838170,-543120.59765041,0.00011,2]
[340110722,1728583838183,-335969.50129401,0.00011,2]
[340110723,1728583838194,-2162.16394645,0.00011,2]
[340110724,1728583838206,-9594.55158165,0.00011,2]
[340110725,1728583838217,-678.57102357,0.00011,2]
[340110726,1728583838238,-479159.74166299,0.00011,2]
[340110727,1728583838251,-757.25070126,0.00011,2]
[340110728,1728583838316,-307.6,0.00011,2]
[340110729,1728583838328,-31184.60384993,0.00011,2]
[340110730,1728583838346,-8951.943,0.00011,2]
[340110731,1728583838360,-602.58339565,0.00011,2]
[340110732,1728583838376,-930.51620209,0.00011,2]
[340110733,1728583838389,-5808.32989986,0.00011,2]
[340110734,1728583838401,-26513.80692951,0.00011,2]
[340110735,1728583838413,-2100.92790881,0.00011,2]
[340110736,1728583838425,-41161.91231337,0.00011,2]
[340110737,1728583838437,-435505.00826695,0.00011,2]
[340110738,1728583838448,-5105.80365959,0.00011,2]
[340110739,1728583838460,-59000.0,0.00011,2]
[340110740,1728583838472,-289.394105,0.00011,2]
[340110741,1728583838487,-519.07829482,0.00011,2]
[340110742,1728583838499,-760.90404556,0.00011,2]
[340110743,1728583838510,-450.23373402,0.00011,2]
[340110744,1728583838522,-320105.74790217,0.00011,2]
[340110745,1728583838546,-18465.70322927,0.00011,2]
[340110746,1728583838558,-17904.41208002,0.00011,2]
[340110747,1728583838570,-534.33506897,0.00011,2]
[340110748,1728583838581,-14391.21398107,0.00011,2]
[340110749,1728583838593,-2837.4908233,0.00011,2]
[340110750,1728583838619,-179168.44539771,0.00011,2]
[340110751,1728583838635,-435.08460177,0.00011,2]
[340110873,1728583840159,-5904.2,0.00011,2]
[340110874,1728583840284,-10028.15949121,0.00011,2]
[340110875,1728583840483,-287.39299999,0.00011,2]
[340110877,1728583843237,-638.4467357,0.00011,2]
[340110878,1728583843266,-3433.32304055,0.00011,2]
[340110879,1728583843293,-5958.5,0.00011,2]
[340110880,1728583843338,-72238.77054208,0.00011,2]
[340110884,1728583843476,-155773.1339848,0.00011,2]
[340110886,1728583843487,-250100.0,0.00011,2]
[340110888,1728583843502,-2803.226426,0.00011,2]
[340110891,1728583843680,-1563230.94596452,0.00011,2]
[340110892,1728583843692,-78349.18280986,0.00011,2]
[340110905,1728583844022,-88763.37517492,0.00011,2]
[340110906,1728583844035,-3570.0,0.00011,2]
[340110907,1728583844047,-1212.63043994,0.00011,2]
[340110909,1728583844063,-29774.48131605,0.00011,2]
[340110911,1728583844074,-12951.7854102,0.00011,2]
[340110913,1728583844084,-323432.12891731,0.00011,2]
[340110915,1728583844095,-10927.4070303,0.00011,2]
[340110922,1728583844167,-5948.01519512,0.00011,2]
[340110924,1728583844178,-3780.358672,0.00011,2]
[340110926,1728583844188,-1491.25,0.00011,2]
[340110928,1728583844199,-2950.0,0.00011,2]
[340110960,1728583846107,-354.32984867,0.00011,2]
[340110972,1728583846203,-438.82274706,0.00011,2]
[340110974,1728583846213,-598.10125,0.00011,2]
[340110976,1728583846224,-682.86117472,0.00011,2]
[340110978,1728583846235,-13600.0,0.00011,2]
[340110983,1728583846277,-222910.33485746,0.00011,2]
[340110986,1728583846299,-12358.97142775,0.00011,2]
[340110988,1728583846309,-592.11,0.00011,2]
[340110990,1728583846324,-343.217,0.00011,2]
[340110992,1728583846335,-2395.4,0.00011,2]
[340110994,1728583846346,-991.3302,0.00011,2]
[340110996,1728583846357,-406.53089149,0.00011,2]
[340110998,1728583846370,-10321.84481932,0.00011,2]
[340110999,1728583846381,-357013.09999997,0.00011,2]
[340111000,1728583846421,-11935.84104,0.00011,2]
[340111001,1728583846443,-53762.26479962,0.00011,2]
[340111002,1728583846454,-1001.87347335,0.00011,2]
[340111003,1728583846465,-529.54500808,0.00011,2]
[340111004,1728583846476,-4475.25,0.00011,2]
[340111069,1728583907573,615.02,9.65e-05,2]
[340111070,1728584126383,9944.0,0.000125,3]
[340111071,1728584188054,11516.0,0.000125,5]
[340111075,1728584491123,150.0,8.983e-05,2]
[340111076,1728584491143,150.0,8.983e-05,2]
[340111077,1728584491170,299.27,8.983e-05,2]
[340111109,1728585032323,-1000.0,0.00010398,2]
[340111111,1728585032333,-209.09,0.00010428,2]
[340111113,1728585032342,-250.0,0.00010517,2]
[340111114,1728585032352,-253.3,0.00010596,2]
[340111115,1728585032364,-255.79,0.00010596,2]
[340111116,1728585032373,-168.337066,0.00010633,2]
[340111117,1728585032383,-250.0,0.00010856,2]
[340111118,1728585032392,-500.0,0.00010873,2]
[340111119,1728585032402,-209.0,0.00010879,2]
[340111120,1728585032412,-300.0,0.00010879,2]
[340111121,1728585032421,-1004.60136942,0.0001088,2]
[340111122,1728585032433,-427.53,0.0001088,2]
[340111123,1728585032565,-1039.14973622,0.0001088,2]
[340111131,1728585038440,-418.52733,0.0001088,2]
[340111132,1728585038469,-10582.70611948,0.0001088,2]
[340111133,1728585038481,-7561.79478695,0.0001088,2]
[340111134,1728585038492,-66790.58371164,0.0001088,2]
[340111135,1728585038502,-415.2489,0.000109,2]
[340111136,1728585038511,-8240.111819,0.000109,2]
[340111137,1728585038520,-418.705,0.000109,2]
[340111138,1728585038545,-160.04927942,0.000109,2]
[340111139,1728585038554,-3256.32977055,0.000109,2]
[340111140,1728585038563,-150.7,0.00010959,2]
[340111141,1728585038572,-159.01,0.00010959,2]
[340111142,1728585038582,-299.60265536,0.0001099,2]
[340111143,1728585038591,-218.93350497,0.00010997,2]
[340111144,1728585038600,-167.315,0.00010998,2]
[340111145,1728585038610,-3016.55182492,0.00010999,2]
[340111146,1728585038619,-500.0,0.00010999,2]
[340111147,1728585038628,-372.89167382,0.00010999,2]
[340111148,1728585038638,-113877.73637017,0.00011,2]
[340111149,1728585038652,-283293.29705139,0.00011,2]
[340111150,1728585038664,-312.27156458,0.00011,2]
[340111151,1728585038679,-59062.9999999,0.00011,2]
[340111152,1728585038693,-637.47,0.00011,2]
[340111153,1728585038714,-7050.89368778,0.00011,2]
[340111154,1728585038747,-2961.79709064,0.00011,2]
[340111155,1728585038759,-850.31100141,0.00011,2]
[340111156,1728585038770,-1776.4775327,0.00011,2]
[340111157,1728585038782,-473.85416017,0.00011,2]
[340111162,1728585038840,-687.89859407,0.00011,2]
[340111196,1728585040327,-856.27062864,0.00011,2]
[340111198,1728585040452,-2363.52,0.00011,2]
[340111199,1728585040463,-1011.2415,0.00011,2]
[340111200,1728585040475,-583.25,0.00011,2]
[340111201,1728585040669,-1883.12601228,0.00011,2]
[340111202,1728585040681,-1482.69947438,0.00011,2]
[340111203,1728585040693,-945.886,0.00011,2]
[340111214,1728585043537,-333313.16907491,0.00011,2]
[340111215,1728585043548,-250100.0,0.00011,2]
[340111216,1728585043568,-4447.16803114,0.00011,2]
[340111217,1728585043579,-625.0259665,0.00011,2]
[340111259,1728585046587,-2913.63109089,0.00011,2]
[340111260,1728585046599,-2348.9,0.00011,2]
[340111261,1728585046610,-2630.0,0.00011,2]
[340111262,1728585046708,-354.098,0.00011,2]
[340111263,1728585046721,-5917.186572,0.00011,2]
[340111264,1728585068868,632.23,9.672e-05,2]
[340111266,1728585572146,600.61,8.591e-05,2]
[340111267,1728585707549,250.0,0.00010206,2]
[340111268,1728585712164,2050.67,0.0001022,2]
[340111271,1728585950518,500.0,0.00010093,2]
[340111272,1728586017306,800.0,0.00010058,2]
[340111274,1728586108142,1273.88,0.0001008,2]
[340111275,1728586122413,6366.29,0.00010057,2]
[340111276,1728586135292,627.19,8.219e-05,2]
[340111277,1728586154787,547.95,0.00010174,2]
[340111286,1728586231479,-300.3,0.00010247,2]
[340111287,1728586231534,-72.5196,0.00010247,2]
[340111288,1728586231544,-250.0,0.0001027,2]
[340111289,1728586231554,-174.5,0.00010395,2]
[340111290,1728586231564,-154.50021103,0.00010479,2]
[340111291,1728586231575,-472.68978897,0.00010479,2]
[340111292,1728586231584,-630.0,0.00010633,2]
[340111293,1728586231593,-167.898229,0.00010633,2]
[340111294,1728586231604,-890.57801775,0.0001078,2]
[340111295,1728586231617,-200.0,0.00010849,2]
[340111296,1728586231626,-915.30377341,0.000109,2]
[340111297,1728586231638,-660.00532659,0.000109,2]
[340111298,1728586231647,-1588.0799,0.000109,2]
[340111299,1728586231657,-1000.0,0.000109,2]
[340111300,1728586231667,-2930.69679345,0.000109,2]
[340111301,1728586231676,-164.70778112,0.000109,2]
[340111302,1728586231686,-1358.0092,0.000109,2]
[340111303,1728586231695,-150.99,0.000109,2]
[340111304,1728586231704,-160.04927942,0.000109,2]
[340111305,1728586231714,-162.76496496,0.000109,2]
[340111306,1728586231723,-200.0,0.00010959,2]
[340111307,1728586231732,-321.61,0.00010959,2]
[340111308,1728586231741,-250.0,0.00010959,2]
[340111309,1728586231751,-164.72,0.00010959,2]
[340111310,1728586231760,-500.0,0.00010973,2]
[340111311,1728586231769,-500.0,0.00010973,2]
[340111312,1728586231779,-500.0,0.00010974,2]
[340111313,1728586231789,-500.0,0.00010982,2]
[340111314,1728586231798,-158.0891034,0.0001099,2]
[340111315,1728586231807,-158.0891034,0.0001099,2]
[340111316,1728586231817,-500.0,0.00010991,2]
[340111317,1728586231827,-602.78857496,0.00010997,2]
[340111319,1728586231836,-276.16624283,0.00010999,2]
[340111321,1728586231845,-106.11372985,0.00010999,2]
[340111323,1728586231858,-43.88627015,0.00010999,2]
[340111325,1728586231868,-435.96144136,0.00010999,2]
[340111328,1728586231879,-175.06273031,0.00010999,2]
[340111331,1728586231888,-247.92566002,0.00010999,2]
[340111334,1728586231897,-30.01160967,0.00010999,2]
[340111337,1728586231909,-137.30439033,0.00010999,2]
[340111339,1728586231918,-383.11554883,0.00011,2]
[340111341,1728586231933,-570.58274631,0.00011,2]
[340111343,1728586231944,-77.30170486,0.00011,2]
[340111345,1728586231954,-4792.57035546,0.00011,2]
[340111346,1728586231967,-5823.00804009,0.00011,2]
[340111347,1728586231978,-1185.39,0.00011,2]
[340111348,1728586231990,-3462.95560693,0.00011,2]
[340111355,1728586237872,-250.0,0.00010726,2]
[340111356,1728586237907,-520.22277959,0.00010726,2]
[340111357,1728586237964,-603.07901941,0.00010726,2]
[340111358,1728586237973,-1400.32726692,0.00011,2]
[340111359,1728586238037,-10284.04924799,0.00011,2]
[340111420,1728586239617,-650.10809178,0.00011,2]
[340111421,1728586239628,-1334.87992875,0.00011,2]
[340111422,1728586239659,-73556.67419524,0.00011,2]
[340111423,1728586239668,-930.0,0.00011,2]
[340111424,1728586239677,-341521.50659484,0.00011,2]
[340111425,1728586239688,-591.835824,0.00011,2]
[340111426,1728586239793,-591.053984,0.00011,2]
[340111427,1728586239804,-332.63776424,0.00011,2]
[340111448,1728586241768,2830.94,0.00010174,2]
[340111465,1728586242752,-333313.16907491,0.00011,2]
[340111466,1728586242765,-250100.0,0.00011,2]
[340111495,1728586246165,-15329.0779,0.000109,2]
[340111497,1728586246174,-833.0,0.00011,2]
[340111499,1728586246184,-85368.77585751,0.00011,2]
[340111501,1728586246195,-2961.35,0.00011,2]
[340111510,1728586379571,2503.5,0.000215,90]
[340111511,1728586441939,250.0,0.00010174,2]
[340111512,1728586766631,150.0,9.118e-05,2]
[340111513,1728586766653,150.0,9.118e-05,2]
[340111514,1728586766679,295.14,9.118e-05,2]
[340111515,1728587344539,150.0,8.553e-05,2]
[340111516,1728587344562,150.0,8.553e-05,2]
[340111517,1728587344587,280.38,8.553e-05,2]
[340111530,1728587431831,-1087.0,0.00010458,2]
[340111531,1728587431998,-2280.76031104,0.00010458,2]
[340111545,1728587437890,-335.60145136,0.00010458,2]
[340111546,1728587437901,-360.5,0.00010458,2]
[340111547,1728587438080,-4178.676,0.00010458,2]
[340111549,1728587438091,-12152.49999967,0.00010458,2]
[340111559,1728587439719,-1819.99999776,0.00010458,2]
[340111560,1728587439730,-555.13416137,0.00010458,2]
[340111561,1728587439775,-60934.9567241,0.00010458,2]
[340111562,1728587439783,-35973.51564242,0.00010458,2]
[340111563,1728587439795,-352.75909744,0.00010458,2]
[340111564,1728587439835,-913.23830022,0.00010458,2]
[340111565,1728587439846,-351.90499999,0.00010458,2]
[340111573,1728587440132,-7661.75508635,0.00010458,2]
[340111575,1728587440143,-2043.76623838,0.00010458,2]
[340111577,1728587440155,-804.51239305,0.00010458,2]
[340111579,1728587440166,-2419.78327386,0.00010458,2]
[340111582,1728587440176,-1226.66149548,0.00010458,2]
[340111648,1728587442790,-157317.89133181,0.00010458,2]
[340111649,1728587442803,-174.5,0.00010458,2]
[340111650,1728587442814,-22689.89,0.00010523,2]
[340111651,1728587442823,-636.94,0.00010535,2]
[340111652,1728587442833,-150.0,0.00010676,2]
[340111653,1728587442842,-250.0,0.00010677,2]
[340111654,1728587442852,-35817.11282879,0.00010677,2]
[340111655,1728587442862,-580.38,0.00010817,2]
[340111656,1728587442872,-362.7851,0.000109,2]
[340111657,1728587442881,-483.0,0.000109,2]
[340111658,1728587442890,-1336.9387,0.000109,2]
[340111659,1728587442899,-161.5,0.00010959,2]
[340111660,1728587442908,-150.7,0.00010959,2]
[340111661,1728587442917,-375.03,0.00010959,2]
[340111662,1728587442926,-250.0,0.00010959,2]
[340111663,1728587442935,-500.0,0.00010973,2]
[340111664,1728587442944,-1432.76,0.00010973,2]
[340111665,1728587442954,-500.0,0.00010991,2]
[340111666,1728587442964,-56440.0986421,0.00010995,2]
[340111667,1728587442973,-427.71692017,0.00010999,2]
[340111668,1728587442982,-703.0,0.00011,2]
[340111669,1728587442992,-52572.92555204,0.00011,2]
[340111670,1728587443003,-44925.43041369,0.00011,2]
[340111671,1728587443012,-205174.56958631,0.00011,2]
[340111672,1728587443023,-659.44059965,0.00011,2]
[340111673,1728587443035,-1045.14,0.00011,2]
[340111674,1728587443046,-17645.626209,0.00011,2]
[340111675,1728587443061,-16586.96867989,0.00011,2]
[340111676,1728587443072,-16774.24069954,0.00011,2]
[340111677,1728587443084,-647.46735558,0.00011,2]
[340111678,1728587443095,-473.22562582,0.00011,2]
[340111679,1728587443107,-302.23,0.00011,2]
[340111680,1728587443119,-300.1,0.00011,2]
[340111681,1728587443131,-307.38558639,0.00011,2]
[340111682,1728587443143,-274.264,0.00011,2]
[340111683,1728587443155,-309.865,0.00011,2]
[340111684,1728587443170,-234933.86410651,0.00011,2]
[340111685,1728587443276,-1.21928219,0.00011,2]
[340111686,1728587443289,-2057.28,0.00011,2]
[340111695,1728587445752,-1195.57080635,0.00011,2]
[340111696,1728587445765,-23721.51215911,0.00011,2]
[340111697,1728587445913,-73537.8588345,0.00011,2]
[340111698,1728587445964,-2379.74694949,0.00011,2]
[340111699,1728587445976,-1863.42,0.00011,2]
[340111700,1728587446007,-488.53388344,0.00011,2]
[340111731,1728587867514,150.0,8.395e-05,2]
[340111732,1728587867536,150.0,8.395e-05,2]
[340111733,1728587867561,266.37,8.395e-05,2]
[340111734,1728587893379,318.47,0.00010213,2]
[340111735,1728588021040,242.95,9.992e-05,2]
[340111736,1728588322988,183.8,9.97e-05,2]
[340111738,1728588362262,150.0,9.888e-05,2]
[340111739,1728588389203,538.05,8.219e-05,2]
[340111740,1728588400527,159.23,9.97e-05,2]